bitfinex/quotes_ETHUSD_20250626
["timestamp","ask_amount","ask_price","bid_price","bid_amount"]
[1750936400827,0.7915,2451.9,2451.7,4.07870865]
[1750936401033,0.2032,2451.8,2451.7,4.07870865]
[1750936401249,0.7961,2452.1,2451.8,4.07854291]
[1750936401551,0.2032,2451.9,2451.8,4.07854291]
[1750936402933,0.2032,2451.9,2451.7,6.679]
[1750936403432,0.2032,2451.9,2451.8,4.0786361]
[1750936404248,0.7627,2452.2,2452.0,4.07823982]
[1750936404556,0.2032,2452.1,2451.9,4.07831962]
[1750936404865,0.2032,2452.1,2452.0,4.07830342]
[1750936405355,0.2032,2452.1,2452.0,10.75630342]
[1750936405653,0.7994,2452.7,2452.5,4.0774698]
[1750936405861,1.7674108,2452.9,2452.6,4.07729637]
[1750936406156,10.55,2452.8,2452.6,4.07729637]
[1750936406331,11.5180108,2452.8,2452.6,4.07729637]
[1750936406534,0.9680108,2452.8,2452.7,4.07713947]
[1750936406856,0.2032,2452.8,2452.7,4.07713947]
[1750936407555,0.2032,2452.8,2452.6,10.75522152]
[1750936407921,0.2032,2452.8,2452.6,6.678]
[1750936408120,0.2032,2452.8,2452.6,6.677]
[1750936408954,0.2032,2452.8,2452.3,5.81672216]
[1750936409164,0.55,2452.6,2451.7,0.7949]
[1750936409363,0.2032,2452.2,2451.8,6.676]
[1750936409661,0.2032,2452.0,2451.8,6.676]
[1750936409971,0.2032,2452.0,2451.8,10.75461056]
[1750936410131,0.2032,2452.0,2451.9,4.07846975]
[1750936410949,0.2032,2452.0,2451.9,4.0798165]
[1750936411673,0.2032,2452.0,2451.9,0.00134675]
[1750936414639,0.2032,2452.0,2451.8,6.676]
[1750936414855,0.2032,2452.0,2451.9,6.676]
[1750936415452,0.2032,2452.0,2451.9,6.67783982]
[1750936416369,0.2032,2452.0,2451.9,0.00183982]
[1750936419161,0.2032,2452.0,2451.8,6.676]
[1750936419663,0.2032,2452.0,2451.7,4.07873849]
[1750936419664,0.8293,2451.9,2451.6,4.0788845]
[1750936419836,0.8293,2451.9,2451.8,6.675]
[1750936423038,0.8293,2451.9,2451.8,6.67744474]
[1750936423237,1.3061,2452.3,2451.8,6.675]
[1750936423466,0.55,2452.1,2451.8,6.675]
[1750936423845,0.55,2452.2,2451.8,6.675]
[1750936426475,0.55,2452.1,2451.8,6.675]
[1750936428382,10.55,2452.1,2451.8,6.675]
[1750936430537,0.2032,2451.8,2451.7,6.675]
[1750936430741,1.85289654,2452.0,2451.7,6.675]
[1750936431540,1.85289654,2452.0,2451.4,4.28236748]
[1750936431738,0.2032,2451.7,2451.5,6.674]
[1750936432780,0.2032,2451.7,2451.6,4.07896883]
[1750936433952,0.8223,2452.1,2452.0,4.07830342]
[1750936434153,0.2032,2452.0,2451.9,4.07838032]
[1750936435092,0.2032,2452.0,2451.9,4.08082497]
[1750936438780,0.2032,2452.0,2451.9,4.07972707]
[1750936440693,0.2032,2452.0,2451.9,4.08107382]
[1750936443301,0.2032,2452.0,2451.9,4.07972707]
[1750936444702,0.2032,2452.0,2451.9,4.07838032]
[1750936445412,0.96982841,2452.4,2452.2,4.0779708]
[1750936445715,0.2032,2452.4,2452.3,4.07780451]
[1750936454332,0.2032,2452.4,2452.3,10.74880451]
[1750936454530,1.17302841,2452.6,2452.5,4.07747196]
[1750936454733,0.2032,2452.6,2452.5,4.07747196]
[1750936457944,0.2032,2452.6,2452.5,4.88257196]
[1750936459915,0.7936,2453.0,2452.8,4.07692585]
[1750936460248,0.2032,2452.9,2452.8,4.07697325]
[1750936464749,0.2032,2452.9,2452.7,4.07705041]
[1750936464954,0.2032,2452.9,2452.8,4.07697325]
[1750936465122,0.1087537,2453.1,2452.8,4.07697325]
[1750936465454,0.2032,2453.0,2452.9,6.669]
[1750936466057,0.2019,2453.0,2452.9,6.669]
[1750936469154,0.2019,2453.0,2452.9,10.74580704]
[1750936470954,0.2019,2453.0,2452.9,11.55520704]
[1750936471260,0.1087537,2453.1,2452.7,4.07700017]
[1750936471429,11.0724537,2453.1,2452.9,6.667]
[1750936472380,11.0724537,2453.1,2452.8,4.07696989]
[1750936472984,11.0724537,2453.1,2452.7,10.9472464]
[1750936473173,0.97030838,2452.8,2452.7,10.9472464]
[1750936473372,11.0724537,2453.1,2452.8,4.07695775]
[1750936475569,11.0724537,2453.1,2452.8,10.74295775]
[1750936476646,11.0724537,2453.1,2452.9,4.07678452]
[1750936476851,11.0724537,2453.1,2452.8,10.74289163]
[1750936477089,11.0724537,2453.1,2452.8,6.666]
[1750936477697,11.0724537,2453.1,2452.7,0.2032]
[1750936477979,0.55,2453.0,2452.7,6.666]
[1750936479983,11.51885869,2453.0,2452.7,6.666]
[1750936483197,0.2032,2452.7,2452.6,6.665]
[1750936484076,0.2032,2452.7,2452.4,4.07755513]
[1750936484270,0.2032,2452.7,2452.5,6.665]
[1750936484466,0.2032,2452.7,2452.4,4.07755513]
[1750936484667,0.55,2452.7,2452.4,6.665]
[1750936484871,0.2032,2452.5,2452.4,6.665]
[1750936485684,0.2032,2452.5,2452.4,10.74263823]
[1750936485889,0.2032,2452.5,2452.4,6.665]
[1750936487799,0.2032,2452.5,2452.4,6.66744415]
[1750936488566,0.2032,2452.5,2452.4,10.74508238]
[1750936489499,0.2032,2452.5,2452.4,6.66744415]
[1750936489999,0.2032,2452.5,2452.4,10.74508238]
[1750936490498,0.2032,2452.5,2452.4,4.08008238]
[1750936491294,0.2032,2452.5,2452.4,4.07763823]
[1750936492696,0.8163,2452.8,2452.5,4.07731345]
[1750936492890,0.2032,2452.6,2452.5,4.07731345]
[1750936494008,0.2032,2452.6,2452.5,4.0785489]
[1750936496412,0.2032,2452.6,2452.5,4.0804381]
[1750936496793,0.2032,2452.6,2452.5,4.07920265]
[1750936500023,0.2032,2452.6,2452.5,4.07731345]
[1750936500723,0.2032,2452.6,2452.4,4.0776378]
[1750936500894,1.0238,2452.6,2452.2,4.28103936]
[1750936501102,10.55,2452.5,2451.8,0.8223]
[1750936501304,0.8206,2452.1,2451.8,6.8652]
[1750936501498,0.8206,2452.1,2451.7,5.81072991]
[1750936501821,10.55,2452.5,2452.1,4.07802255]
[1750936501989,0.2032,2452.3,2452.2,4.0778614]
[1750936502622,0.2032,2452.4,2452.3,4.07770751]
[1750936504123,1.009,2452.4,2452.1,0.2032]
[1750936504336,0.8058,2452.4,2451.9,4.07839002]
[1750936504630,0.55,2452.3,2452.1,6.662]
[1750936505622,0.55,2452.3,2452.2,0.00244435]
[1750936506821,0.8058,2452.4,2452.2,0.00244435]
[1750936507022,1.60476654,2452.4,2452.2,0.00244435]
[1750936508295,0.8058,2452.4,2452.2,0.00244435]
[1750936508495,0.2032,2452.2,2452.1,4.07811224]
[1750936509001,1.72363728,2452.6,2452.3,4.07765598]
[1750936509201,0.2032,2452.4,2452.2,4.07786856]
[1750936509707,0.2032,2452.4,2452.3,4.07780451]
[1750936510121,10.0,2453.0,2452.6,4.07715826]
[1750936510122,0.2032,2452.7,2452.6,4.07715826]
[1750936510312,0.2019,2452.7,2452.6,4.07715826]
[1750936511350,0.2019,2452.7,2452.5,4.07738695]
[1750936511628,0.2019,2452.7,2452.6,4.07730571]
[1750936512329,0.2019,2452.7,2452.6,4.07854166]
[1750936512507,0.97003728,2453.0,2452.9,4.07680704]
[1750936512712,0.2032,2453.0,2452.9,4.07680704]
[1750936513297,0.2032,2453.0,2452.7,4.07697396]
[1750936513541,1.07879098,2453.1,2452.7,4.07712249]
[1750936513804,0.2032,2452.8,2452.7,4.07712249]
[1750936516534,0.3119537,2453.1,2453.0,4.07664084]
[1750936517648,0.1087537,2453.1,2453.0,11.56774084]
[1750936518441,0.1087537,2453.1,2453.0,4.07664084]
[1750936518618,0.1087537,2453.1,2453.0,10.73664084]
[1750936519028,0.1087537,2453.1,2452.9,4.07676748]
[1750936519844,0.1087537,2453.1,2452.8,10.73694799]
[1750936520044,0.1087537,2453.1,2452.9,4.07664885]
[1750936520254,0.1087537,2453.1,2453.0,4.07664084]
[1750936520540,0.1087537,2453.1,2453.0,4.83674084]
[1750936521308,0.1087537,2453.1,2453.0,4.07664084]
[1750936524712,0.1087537,2453.1,2453.0,10.73564084]
[1750936526743,0.1087537,2453.1,2453.0,6.659]
[1750936526948,0.1087537,2453.1,2452.8,12.4639155]
[1750936527114,0.8099,2453.0,2452.7,4.07706955]
[1750936527313,0.8099,2453.0,2452.6,10.73523053]
[1750936527509,0.2032,2452.9,2452.7,4.07710359]
[1750936527710,0.2032,2452.9,2452.8,4.07697325]
[1750936527915,0.2032,2452.9,2452.8,4.07806143]
[1750936528755,0.2032,2452.9,2452.8,0.00108818]
[1750936531214,0.7532,2452.9,2452.8,0.00108818]
[1750936531565,0.7532,2452.9,2452.6,4.07720277]
[1750936531716,0.55,2452.9,2452.6,4.07720277]
[1750936532031,0.2032,2452.7,2452.4,10.73557097]
[1750936532231,0.2032,2452.7,2452.5,4.07746414]
[1750936533158,0.2032,2452.7,2452.6,4.07730571]
[1750936534650,0.2032,2452.7,2452.5,4.07739664]
[1750936534856,0.2032,2452.7,2452.4,10.73553858]
[1750936535051,0.55,2452.8,2452.4,4.07753858]
[1750936535255,0.2032,2452.5,2452.4,10.73553858]
[1750936535827,0.2032,2452.5,2452.3,4.0777171]
[1750936536028,0.2032,2452.5,2452.3,10.7357171]
[1750936538262,0.2032,2452.5,2452.4,4.07763823]
[1750936539753,0.2032,2452.5,2452.3,10.7356986]
[1750936539949,0.2032,2452.5,2452.4,4.07763823]
[1750936540863,0.2032,2452.7,2452.5,4.0773591]
[1750936544367,0.2032,2452.7,2452.4,4.07756294]
[1750936544867,0.2032,2452.7,2452.4,8.15506735]
[1750936545071,0.2032,2452.7,2452.5,4.07745414]
[1750936546869,0.2032,2452.7,2452.4,4.07754367]
[1750936547272,0.2032,2452.7,2452.3,10.73576909]
[1750936547493,0.2032,2452.5,2452.3,10.73576909]
[1750936548773,0.2032,2452.5,2452.3,6.658]
[1750936550084,0.2032,2452.5,2452.3,10.73478884]
[1750936550381,0.1087537,2453.1,2452.3,10.73478884]
[1750936550382,0.1087537,2453.1,2452.8,4.07690268]
[1750936550572,0.2032,2452.9,2452.7,4.07713947]
[1750936550882,0.2032,2452.9,2452.4,0.9864]
[1750936550883,0.2032,2452.9,2452.5,4.07737101]
[1750936551177,0.9594,2452.9,2452.6,6.657]
[1750936551578,10.7562,2452.9,2452.5,4.07747157]
[1750936551792,0.2032,2452.7,2452.5,10.73447157]
[1750936552084,0.2032,2452.7,2452.5,6.657]
[1750936553484,0.2032,2452.7,2452.5,10.73444483]
[1750936554086,0.2032,2452.7,2452.5,4.07744483]
[1750936554381,0.2032,2452.7,2452.4,4.07757995]
[1750936554754,0.2032,2452.7,2452.5,0.00244405]
[1750936554949,0.2032,2452.7,2452.6,4.07730571]
[1750936555488,0.2032,2452.7,2452.6,4.07974966]
[1750936555863,0.2032,2452.7,2452.6,0.00244395]
[1750936556388,0.2032,2452.7,2452.6,4.07974966]
[1750936556693,11.5359,2452.7,2452.6,0.00244395]
[1750936557005,0.55,2452.4,2451.9,4.07839271]
[1750936557153,7.73386541,2452.4,2451.9,4.07839271]
[1750936557353,0.2032,2452.1,2451.9,4.07839271]
[1750936558982,0.8063,2452.2,2451.8,4.07862935]
[1750936559158,0.2032,2452.0,2451.8,4.07861747]
[1750936560187,0.2032,2452.0,2451.9,4.07846975]
[1750936560367,0.2032,2452.0,2451.9,4.0798165]
[1750936560562,0.2032,2452.0,2451.9,4.07846975]
[1750936560768,1.72533551,2452.5,2451.9,4.07846975]
[1750936560970,0.2032,2452.2,2452.0,4.078192]
[1750936561578,0.2032,2452.2,2452.1,4.0781371]
[1750936562558,0.2032,2452.2,2452.1,4.07948374]
[1750936563166,0.2032,2452.2,2452.1,0.00134664]
[1750936563468,0.2032,2452.2,2452.1,4.07948374]
[1750936566490,0.2032,2452.2,2452.1,4.0781371]
[1750936566788,0.96984443,2452.5,2452.4,4.07763823]
[1750936566962,2.1996721,2452.5,2452.4,4.07763823]
[1750936567158,3.16951653,2452.5,2452.4,4.07763823]
[1750936567359,0.96984443,2452.5,2452.4,4.07763823]
[1750936567665,0.2032,2452.7,2452.5,0.8188]
[1750936567866,0.2032,2452.7,2452.4,0.2032]
[1750936568071,0.2032,2452.6,2452.5,6.656]
[1750936568273,0.2032,2452.6,2452.5,4.07732183]
[1750936570168,0.2032,2452.6,2452.4,10.73361078]
[1750936570364,0.2032,2452.6,2452.3,4.07776834]
[1750936570593,1.36549654,2452.6,2451.8,0.9937]
[1750936570889,0.2032,2452.2,2452.0,4.07830342]
[1750936571100,0.2032,2452.2,2452.1,4.0781371]
[1750936571460,0.2032,2452.2,2452.1,4.07948374]
[1750936574695,0.2032,2452.2,2452.1,4.0781371]
[1750936577894,0.2032,2452.2,2452.0,10.73430103]
[1750936578075,0.2032,2452.2,2452.0,10.73421604]
[1750936578277,0.55,2452.4,2452.1,4.0781371]
[1750936578602,0.55,2452.4,2452.3,4.077734]
[1750936578969,1.364,2452.5,2452.4,4.07763823]
[1750936579164,2.59741739,2452.5,2452.4,4.07763823]
[1750936580267,2.04741739,2452.5,2452.4,4.07763823]
[1750936580470,2.04741739,2452.5,2452.3,4.07772754]
[1750936580670,0.8194,2452.5,2452.3,4.07771893]
[1750936581400,0.8194,2452.5,2452.4,4.07763823]
[1750936585512,11.75847385,2452.7,2452.4,4.07763823]
[1750936586914,11.75847385,2452.7,2452.4,0.00134645]
[1750936587278,11.75847385,2452.7,2452.4,4.0789805]
[1750936587483,11.75847385,2452.7,2452.4,4.07763405]
[1750936588292,1.94923393,2452.6,2452.4,4.07763405]
[1750936588489,2.91940778,2452.6,2452.3,4.07772929]
[1750936588693,2.91940778,2452.6,2452.0,7.4221]
[1750936588694,0.2032,2452.4,2452.0,10.73422434]
[1750936588890,0.2032,2452.2,2452.0,4.0782397]
[1750936589091,0.2032,2452.0,2451.7,4.07872411]
[1750936589282,0.2032,2451.8,2451.6,10.73288341]
[1750936590017,0.2032,2451.8,2451.7,4.07880246]
[1750936594605,0.2032,2451.8,2451.7,10.73280246]
[1750936595922,0.2032,2451.8,2451.7,4.07880246]
[1750936596219,0.2032,2451.8,2451.7,10.73280246]
[1750936601012,0.2032,2451.8,2451.7,6.654]
[1750936601414,0.2032,2451.8,2451.7,10.73280246]
[1750936602592,0.2032,2451.8,2451.7,6.654]
[1750936604622,0.2032,2451.8,2451.7,10.73280246]
[1750936604794,0.2032,2451.8,2451.6,4.07889986]
[1750936605723,0.2032,2451.8,2451.6,4.0788704]
[1750936606539,0.2032,2451.8,2451.7,4.07880246]
[1750936606699,0.2032,2451.8,2451.6,4.07888276]
[1750936607406,0.2032,2451.8,2451.4,4.28240624]
[1750936607600,0.55,2451.7,2451.5,6.653]
[1750936607803,7.95796541,2451.9,2451.5,6.653]
[1750936607804,0.55,2451.8,2451.5,10.73211577]
[1750936608005,1.40079654,2451.8,2451.5,10.73211577]
[1750936608205,1.40079654,2451.8,2451.5,6.653]
[1750936608833,1.40079654,2451.8,2451.6,0.00134691]
[1750936609508,1.3584,2451.7,2451.6,0.00134691]
[1750936611212,0.55,2451.7,2451.6,0.00134691]
[1750936611411,13.2204662,2451.7,2451.6,0.00134691]
[1750936612034,18.26735055,2451.7,2451.6,0.00134691]
[1750936612211,48.26735055,2451.7,2451.6,0.00134691]
[1750936612407,0.55,2451.1,2450.6,4.08057673]
[1750936612723,0.204,2450.7,2450.6,4.08057673]
[1750936613121,0.55,2451.1,2450.9,4.08004084]
[1750936613332,0.204,2450.9,2450.8,4.08021061]
[1750936616940,0.204,2450.9,2450.7,4.08036931]
[1750936617146,0.204,2450.7,2450.4,6.653]
[1750936617330,1.35559,2450.7,2450.4,6.653]
[1750936617643,0.204,2450.5,2450.4,6.653]
[1750936617839,0.204,2450.5,2450.3,4.08105967]
[1750936618042,0.55,2450.6,2450.2,10.73420131]
[1750936618348,0.204,2450.3,2449.9,5.97631298]
[1750936618663,0.204,2450.1,2450.0,4.08152837]
[1750936621245,0.204,2450.1,2449.9,10.73577972]
[1750936621246,11.3719,2450.0,2449.3,0.8306]
[1750936621447,11.85557654,2449.9,2449.3,0.8306]
[1750936621645,1.85557654,2449.9,2449.4,4.08258736]
[1750936621828,1.85557654,2449.9,2449.5,4.08236271]
[1750936622251,0.55,2449.8,2449.1,6.654]
[1750936622461,0.55,2449.6,2449.1,10.73709678]
[1750936622764,0.55,2449.6,2449.1,10.73705628]
[1750936623062,0.55,2449.5,2449.0,4.0832073]
[1750936623444,0.7679,2449.4,2448.9,6.654]
[1750936623768,0.55,2448.9,2447.9,1.725]
[1750936624071,0.7679,2448.8,2448.0,6.654]
[1750936624362,1.61807654,2448.8,2448.1,6.654]
[1750936624663,1.61807654,2448.8,2448.2,4.08463096]
[1750936624865,7.73386541,2448.7,2448.1,6.654]
[1750936625040,0.55,2448.7,2448.1,6.654]
[1750936625240,0.55,2448.5,2448.1,6.656]
[1750936625561,7.18386541,2448.4,2447.8,4.86736215]
[1750936625754,0.55,2448.3,2447.8,4.86736215]
[1750936625949,1.3371,2448.3,2447.9,4.08511745]
[1750936626676,0.55,2448.8,2448.3,4.08434792]
[1750936626861,0.55,2448.8,2448.5,4.08404917]
[1750936627065,0.55,2448.8,2447.8,0.7655]
[1750936627066,0.55,2448.6,2447.0,0.7548]
[1750936627370,0.55,2448.0,2447.3,4.08613574]
[1750936627662,0.815,2448.1,2447.0,7.4738]
[1750936627966,0.55,2448.0,2446.3,9.789]
[1750936628153,10.55,2447.8,2447.1,4.08635719]
[1750936628464,19.48692892,2447.9,2446.7,0.8228]
[1750936628465,10.8095,2447.9,2446.7,0.8228]
[1750936628675,0.55,2447.8,2446.9,4.08664156]
[1750936628855,0.55,2447.8,2446.8,4.08688038]
[1750936629169,0.7926,2447.5,2446.3,10.5991]
[1750936629337,0.55,2447.2,2446.3,7.5631]
[1750936629533,1.055,2447.1,2446.3,7.5631]
[1750936629737,0.55,2447.3,2446.3,7.5631]
[1750936629963,0.55,2447.3,2446.3,0.8101]
[1750936630161,0.55,2447.1,2446.3,4.08765362]
[1750936630366,0.55,2447.1,2446.2,4.08788603]
[1750936630567,1.3828,2446.7,2446.1,1.727]
[1750936630762,10.21942892,2446.6,2445.7,0.1084126]
[1750936630965,0.55,2445.4,2444.0,52.062911]
[1750936631137,10.55,2445.3,2444.0,56.15448988]
[1750936631341,4.08859924,2445.9,2444.3,30.0]
[1750936631342,0.7743,2445.9,2444.3,30.0]
[1750936631532,0.7743,2445.9,2444.5,0.8268]
[1750936631739,0.8184,2446.3,2444.7,10.7531]
[1750936632034,0.8184,2446.3,2445.2,4.08963997]
[1750936632035,2.02520429,2446.3,2445.2,4.08963997]
[1750936632248,0.55,2446.2,2444.7,0.7531]
[1750936632445,40.55,2446.2,2444.7,0.7531]
[1750936632672,11.3279,2445.9,2445.1,4.08976407]
[1750936632870,2.15473289,2445.8,2445.4,4.08917738]
[1750936633073,0.7779,2445.9,2445.5,4.0890418]
[1750936633367,1.96120429,2446.3,2445.3,1.813]
[1750936633534,1.96120429,2446.3,2445.4,12.82126503]
[1750936633739,1.96120429,2446.3,2445.9,4.08833171]
[1750936633950,1.96120429,2446.3,2445.5,4.08907503]
[1750936634187,0.7544,2446.3,2444.5,0.7968]
[1750936634384,0.7544,2446.3,2445.8,4.08850705]
[1750936634548,0.7544,2446.3,2445.9,4.08843116]
[1750936634735,0.7544,2446.3,2445.4,5.90226555]
[1750936634736,0.7544,2446.3,2446.0,4.08820527]
[1750936635344,0.7544,2446.3,2446.1,4.08808224]
[1750936635743,0.7544,2446.3,2446.0,4.08823631]
[1750936635985,0.7544,2446.3,2445.8,4.08864175]
[1750936636212,0.7544,2446.3,2445.9,4.0883156]
[1750936636563,0.7544,2446.3,2446.0,4.08817815]
[1750936636890,0.55,2446.5,2446.3,4.08775065]
[1750936637096,0.55,2446.5,2446.3,4.08764918]
[1750936637246,0.55,2446.5,2446.3,4.08777573]
[1750936637463,0.7509,2446.6,2446.3,4.08763956]
[1750936637799,0.7509,2446.6,2446.2,4.08791104]
[1750936638157,0.55,2446.5,2445.6,0.8119]
[1750936638358,0.55,2446.5,2446.0,1.814]
[1750936638560,0.33740446,2446.4,2446.1,4.08813238]
[1750936638756,0.33740446,2446.4,2446.1,4.0881403]
[1750936639192,0.33740446,2446.4,2446.2,4.08796451]
[1750936639561,0.33740446,2446.4,2446.3,4.08780607]
[1750936641394,0.204,2446.3,2446.2,4.08797318]
[1750936641986,0.204,2446.3,2446.0,4.08824093]
[1750936641987,0.204,2446.3,2446.1,4.08803047]
[1750936642185,0.204,2446.3,2446.2,4.08797318]
[1750936645389,0.33740446,2446.4,2446.3,4.08780607]
[1750936645977,0.33740446,2446.4,2446.3,4.29180607]
[1750936646173,0.33740446,2446.4,2446.3,0.204]
[1750936646475,0.54140446,2446.4,2445.7,8.74]
[1750936646806,0.204,2446.2,2445.9,4.08847459]
[1750936647314,1.0273,2446.2,2445.9,4.08847459]
[1750936647604,0.8233,2446.2,2446.0,0.00315968]
[1750936647804,0.204,2446.0,2445.9,4.08847459]
[1750936648715,0.204,2446.0,2445.9,4.0916344]
[1750936650082,0.8233,2446.6,2446.3,4.08777626]
[1750936650281,0.204,2446.4,2446.2,4.08792389]
[1750936650520,0.55,2446.5,2446.0,4.08822514]
[1750936650681,0.204,2446.1,2446.0,4.08822514]
[1750936651889,0.204,2446.1,2446.0,4.08975675]
[1750936652384,0.204,2446.1,2446.0,0.00153161]
[1750936652816,0.204,2446.1,2446.0,4.08983905]
[1750936654609,0.204,2446.1,2446.0,0.00153161]
[1750936654810,1.5693,2446.1,2445.4,4.08931054]
[1750936655010,0.204,2445.8,2445.4,4.08924054]
[1750936655209,0.204,2445.5,2445.4,4.08924054]
[1750936655923,0.204,2445.5,2445.4,4.09081586]
[1750936656520,0.204,2445.5,2445.4,0.00157532]
[1750936656521,0.9641,2445.5,2445.4,0.00157532]
[1750936657429,1.5141,2445.5,2445.4,0.00157532]
[1750936657596,1.76128871,2445.5,2445.4,0.00157532]
[1750936657792,1.76128871,2445.5,2445.4,4.09088586]
[1750936657793,0.204,2445.5,2445.4,4.09088586]
[1750936658130,0.96283524,2446.0,2445.8,4.08848227]
[1750936658287,0.96383531,2445.9,2445.8,4.08848227]
[1750936658692,0.96383531,2445.9,2445.8,4.09003787]
[1750936659491,0.96383531,2445.9,2445.8,4.08848227]
[1750936659696,0.96383531,2445.9,2445.8,4.09003787]
[1750936659903,0.96383531,2445.9,2445.8,4.86483787]
[1750936660112,0.96383531,2445.9,2445.8,5.06883787]
[1750936661031,0.96383531,2445.9,2445.8,6.93983787]
[1750936661332,0.204,2446.7,2446.6,4.08722589]
[1750936661501,1.50789821,2446.7,2446.6,4.08722589]
[1750936661701,2.73815803,2446.7,2446.5,4.08737563]
[1750936661897,0.96656446,2446.6,2446.5,4.08747189]
[1750936662938,0.96656446,2446.6,2446.5,11.20447189]
[1750936663242,0.204,2447.2,2447.1,4.08646969]
[1750936663444,1.17089166,2447.2,2447.1,4.08646969]
[1750936663621,0.96689166,2447.2,2447.1,4.08646969]
[1750936663944,0.204,2447.5,2447.4,4.08596878]
[1750936664110,2.2707519,2447.5,2447.4,4.08596878]
[1750936664510,1.1710219,2447.5,2447.4,4.08596878]
[1750936664929,1.1710219,2447.5,2447.3,4.08603081]
[1750936665240,0.9670219,2447.4,2447.3,4.08603081]
[1750936667418,0.7796,2447.9,2447.6,4.08559519]
[1750936667715,1.16928813,2447.8,2447.7,4.08546799]
[1750936668047,0.96528813,2447.8,2447.7,4.08546799]
[1750936668245,0.96528813,2448.0,2447.9,4.08513419]
[1750936668541,0.96528813,2448.1,2448.0,4.08496732]
[1750936669462,0.204,2448.2,2448.1,4.08480045]
[1750936669626,0.7796,2448.6,2448.5,4.08413314]
[1750936669819,1.94768871,2448.6,2448.5,4.08413314]
[1750936670142,1.94768871,2448.6,2448.2,4.08452778]
[1750936670319,0.9836,2448.6,2448.3,4.08434504]
[1750936670645,0.204,2448.6,2448.4,4.08429425]
[1750936671155,0.204,2448.6,2448.2,4.08455925]
[1750936671445,0.204,2448.6,2448.4,4.08414333]
[1750936671622,0.204,2448.6,2448.1,0.204]
[1750936671824,0.204,2448.6,2448.3,4.08438732]
[1750936672332,0.204,2448.6,2448.4,4.08414144]
[1750936672508,0.204,2448.6,2448.3,4.08433567]
[1750936672714,0.204,2448.6,2448.4,4.0841554]
[1750936672914,0.204,2448.6,2448.3,4.08437594]
[1750936673244,0.55,2448.8,2448.4,4.0842626]
[1750936673759,0.7732,2448.0,2446.8,0.76]
[1750936673916,0.55,2447.5,2446.8,4.08682715]
[1750936674243,0.55,2447.5,2446.4,0.7797]
[1750936674244,0.55,2447.3,2446.7,4.08705305]
[1750936674641,0.55,2447.3,2446.4,4.86729583]
[1750936674825,0.55,2447.3,2446.9,4.0868034]
[1750936675236,0.55,2447.3,2446.8,4.08693262]
[1750936675555,0.55,2447.3,2446.6,4.08721262]
[1750936675947,0.55,2447.3,2446.5,0.34121504]
[1750936676127,0.55,2447.3,2446.5,4.42859721]
[1750936676333,0.55,2447.1,2446.5,0.34121504]
[1750936676547,0.55,2447.1,2446.5,4.42866709]
[1750936677052,0.7563,2447.0,2446.5,0.34121504]
[1750936677256,0.55,2446.9,2446.5,0.34121504]
[1750936677548,0.55,2446.9,2446.5,4.42855692]
[1750936677755,1.68063,2446.9,2446.5,4.08734188]
[1750936677951,1.68063,2446.9,2446.4,4.08981917]
[1750936678127,0.55,2446.7,2446.4,0.00226236]
[1750936678333,0.55,2446.5,2446.4,0.00226236]
[1750936679532,0.55,2446.5,2446.0,4.08828929]
[1750936679951,0.55,2446.5,2446.1,4.08807687]
[1750936680150,0.55,2446.5,2446.0,4.0882145]
[1750936680340,0.55,2446.5,2446.1,4.08810246]
[1750936680540,0.8217,2446.9,2446.1,0.7812]
[1750936680739,0.8217,2446.9,2446.5,4.08736348]
[1750936681146,0.8217,2446.9,2446.6,4.08726842]
[1750936681551,0.8217,2446.9,2446.1,4.86925969]
[1750936681552,0.8217,2446.9,2446.2,1.87]
[1750936681725,0.8217,2446.9,2446.8,4.08697073]
[1750936682122,0.8257,2447.3,2446.9,4.08669702]
[1750936682343,0.96057,2447.2,2446.7,4.08699862]
[1750936682523,0.96057,2447.2,2446.8,4.08696262]
[1750936682725,0.96057,2447.2,2446.9,4.08680136]
[1750936682959,0.96057,2447.2,2446.8,4.08682413]
[1750936683159,0.204,2446.9,2446.8,4.08691406]
[1750936683629,0.204,2446.9,2446.8,4.08697073]
[1750936683957,0.204,2446.9,2446.7,4.08702428]
[1750936684162,0.204,2446.8,2446.7,4.08702428]
[1750936685661,0.55,2447.2,2446.7,4.08702428]
[1750936685851,1.0007,2446.7,2446.4,4.0898144]
[1750936686054,0.204,2446.6,2446.5,4.08744258]
[1750936686249,0.55,2447.2,2446.4,0.00226236]
[1750936686560,1.3164,2447.0,2446.8,4.08696521]
[1750936687066,1.3164,2447.0,2446.9,4.08680371]
[1750936687434,1.3164,2447.0,2446.8,4.08688956]
[1750936687760,1.3164,2447.0,2446.7,4.08707931]
[1750936687962,0.7664,2447.0,2446.9,4.08680371]
[1750936688148,12.16473548,2448.2,2446.6,4.08717388]
[1750936688149,0.7535,2447.6,2447.4,4.08587549]
[1750936688354,0.7535,2447.6,2447.1,4.08645509]
[1750936688355,0.26245,2447.5,2447.1,4.08645509]
[1750936688556,0.7535,2447.6,2447.1,4.08645509]
[1750936688771,0.7535,2447.6,2447.2,4.08628764]
[1750936689060,0.55,2447.5,2447.2,4.08628764]
[1750936689272,0.7535,2447.6,2447.2,4.08613645]
[1750936689574,10.7535,2447.6,2447.3,4.08601862]
[1750936689736,1.26245,2447.5,2447.3,4.08601862]
[1750936690130,10.7535,2447.6,2446.7,0.8139]
[1750936690131,0.7535,2447.6,2447.4,4.08596878]
[1750936690335,0.7535,2447.6,2447.4,4.0858813]
[1750936690537,0.7535,2447.6,2447.5,4.08580183]
[1750936690843,0.7535,2447.6,2446.7,4.90099501]
[1750936691158,0.55,2447.5,2447.2,4.08628871]
[1750936691365,1.68035,2447.5,2447.2,4.08628871]
[1750936691567,1.68035,2447.5,2447.3,4.08607938]
[1750936693173,1.68035,2447.5,2447.3,4.08605486]
[1750936693966,1.68035,2447.5,2446.9,4.08680371]
[1750936694170,1.68035,2447.5,2446.9,4.08675149]
[1750936694469,0.55,2447.3,2447.0,4.08661161]
[1750936694967,0.55,2447.3,2446.8,4.08687794]